[Event "EYTCC Open U18 2018"]
[Site "Bad Blankeburg"]
[Date "2018.07.14"]
[Round "3"]
[White "Roseneck, Jonas"]
[Black "Kopylov, Daniel"]
[Result "1/2-1/2"]
[ECO "C07"]
[WhiteElo "2182"]
[BlackElo "2272"]
[Annotator "NA"]
[PlyCount "147"]
[EventDate "2018.07.12"]
[EventType "swiss"]
[EventCountry "GER"]
[SourceTitle "playchess.com"]
[Source "ChessBase"]
[SourceQuality "1"]
[TimeControl "40/5400+30:1800+30"]

1. e4 {[%emt 0:00:00]} e6 {[%emt 0:00:00]} 2. d4 {[%emt 0:00:00]} d5 {[%emt 0:00:00]} 3. Nd2 {[%emt 0:00:00]} c5 {[%emt 0:01:42]} 4. exd5 {[%emt 0:00:03]} Qxd5 {[%emt 0:00:56]} 5. Ngf3 {[%emt 0:00:11]} cxd4 {[%emt 0:00:34]} 6. Bc4 {[%emt 0:00:13]} Qd7 {[%emt 0:00:55]} 7. O-O {[%emt 0:03:33]} Nc6 {[%emt 0:00:49]} 8. Nb3 {[%emt 0:00:25]} a6 {[%emt 0:01:17]} 9. Nbxd4 {[%emt 0:03:37]} Nxd4 {[%emt 0:00:49]} 10. Nxd4 {[%emt 0:00:48]} Qc7 {[%emt 0:00:37]} 11. Bb3 {[%emt 0:00:22]} Bd6 {[%emt 0:00:43]} 12. h3 {[%emt 0:01:12]} Ne7 {[%emt 0:01:11]} 13. Re1 {[%emt 0:08:56]} O-O {[%emt 0:02:45]} 14. c3 {[%emt 0:02:06]} Bd7 {[%emt 0:12:18]} 15. Bg5 {[%emt 0:14:40]} h6 {[%emt 0:02:41]} 16. Be3 {[%emt 0:00:19]} Rad8 {[%emt 0:01:21]} 17. Qh5 {[%emt 0:01:41]} Bh2+ {[%emt 0:14:35]} 18. Kh1 {[%emt 0:00:26]} Bf4 {[%emt 0:00:56]} 19. Qf3 {[%emt 0:13:07]} Bxe3 {[%emt 0:05:32]} 20. Qxe3 {[%emt 0:00:54]} Nc6 {[%emt 0:03:42]} 21. Nf3 {[%emt 0:13:19]} Ne7 {[%emt 0:02:23]} 22. Ne5 {[%emt 0:01:53]} Bc6 {[%emt 0:06:47]} 23. Kg1 {[%emt 0:08:42]} Nd5 {[%emt 0:02:04]} 24. Qg3 {[%emt 0:03:15]} Nf6 {[%emt 0:02:50]} 25. Rad1 {[%emt 0:08:47]} Be4 {[%emt 0:18:22]} 26. Qf4 {[%emt 0:06:10]} Rxd1 {[%emt 0:01:29]} 27. Rxd1 {[%emt 0:01:14]} Rd8 {[%emt 0:00:59]} 28. Rxd8+ {[%emt 0:01:17]} Qxd8 {[%emt 0:00:06]} 29. Ng4 {[%emt 0:00:01]} Bc6 {[%emt 0:02:27]} 30. Nxf6+ {[%emt 0:01:56]} Qxf6 {[%emt 0:00:10]} 31. Qxf6 {[%emt 0:00:32]} gxf6 {[%emt 0:00:02]} 32. g3 {[%emt 0:00:40]} Kf8 {[%emt 0:02:42]} 33. Kf1 {[%emt 0:00:18]} Ke7 {[%emt 0:00:04]} 34. Ke2 {[%emt 0:00:07]} f5 {[%emt 0:02:07]} 35. Ke3 {[%emt 0:01:53]} e5 {[%emt 0:01:28]} 36. f4 {[%emt 0:00:59]} f6 {[%emt 0:00:31]} 37. g4 {[%emt 0:01:32]} fxg4 {[%emt 0:01:22]} 38. hxg4 {[%emt 0:00:01]} Kd6 {[%emt 0:00:20]} 39. Bc2 {[%emt 0:00:23]} Bd7 {[%emt 0:02:50]} 40. Kf3 {[%emt 0:01:11]} b6 {[%emt 0:00:39]} 41. Bd3 {[%emt 0:11:47]} a5 {[%emt 0:01:31]} 42. Bc2 {[%emt 0:00:54]} Be6 {[%emt 0:04:15]} 43. a3 {[%emt 0:01:54]} Bd7 {[%emt 0:00:03]} 44. b3 {[%emt 0:01:07]} Be8 {[%emt 0:01:35]} 45. Ke3 {[%emt 0:01:52]} Bf7 {[%emt 0:01:10]} 46. b4 {[%emt 0:02:23]} Bd5 {[%emt 0:00:18]} 47. Bd3 {[%emt 0:00:19]} Bb3 {[%emt 0:01:26]} 48. c4 {[%emt 0:02:13]} Bd1 {[%emt 0:01:48]} 49. Bf5 {[%emt 0:00:07]} Ba4 {[%emt 0:00:02]} 50. Be4 {[%emt 0:00:48]} axb4 {[%emt 0:07:25]} 51. axb4 {[%emt 0:00:09]} Bd7 {[%emt 0:00:03]} 52. Kf3 {[%emt 0:00:38]} Be8 {[%emt 0:01:33]} 53. Ke3 {[%emt 0:00:28]} Bd7 {[%emt 0:00:54]} 54. Kf3 {[%emt 0:00:02]} Bc8 {[%emt 0:00:03]} 55. Kg3 {[%emt 0:00:35]} Be6 {[%emt 0:02:43]} 56. Bd3 {[%emt 0:00:06]} Bc8 {[%emt 0:00:43]} 57. Be4 $11 {[%emt 0:00:17]} Ba6 {[%emt 0:00:35]} 58. Bd5 {[%emt 0:00:26]} Bb5 {[%emt 0:03:23]} 59. Kf3 {[%emt 0:02:44]} Ba4 {[%emt 0:01:06]} 60. Bg8 {[%emt 0:03:38]} Bd1+ {[%emt 0:01:14]} 61. Kg3 {[%emt 0:00:00]} Be2 {[%emt 0:00:16]} 62. Bf7 {[%emt 0:02:54]} e4 {[%emt 0:01:48]} 63. g5 {[%emt 0:07:52]} hxg5 {[%emt 0:05:23]} 64. fxg5 {[%emt 0:00:01]} fxg5 {[%emt 0:00:02]} 65. Kf2 {[%emt 0:00:01]} Bf3 {[%emt 0:02:49]} 66. Ke3 {[%emt 0:00:00]} Ke5 {[%emt 0:00:28]} 67. c5 {[%emt 0:00:15]} bxc5 68. bxc5 g4 {[%emt 0:01:03]} 69. c6 {[%emt 0:00:01]} Kd6 {[%emt 0:01:33]} 70. Kf4 {[%emt 0:00:01]} Kxc6 {[%emt 0:00:11]} 71. Be6 {[%emt 0:00:00]} Kc5 {[%emt 0:03:01]} 72. Bxg4 {[%emt 0:00:05]} Kd4 {[%emt 0:00:13]} 73. Bxf3 {[%emt 0:00:08]} exf3 {[%emt 0:00:02]} 74. Kxf3 {[%emt 0:00:06]} 1/2-1/2

[Event "EYTCC Open U18 2018"]
[Site "Bad Blankeburg"]
[Date "2018.07.14"]
[Round "3"]
[White "Papunidi, Matvey"]
[Black "Vasiesiu, Victor"]
[Result "0-1"]
[ECO "A25"]
[WhiteElo "1913"]
[BlackElo "2295"]
[Annotator "NA"]
[PlyCount "118"]
[EventDate "2018.07.12"]
[EventType "swiss"]
[EventCountry "GER"]
[SourceTitle "playchess.com"]
[Source "ChessBase"]
[SourceQuality "1"]
[TimeControl "40/5400+30:1800+30"]

1. c4 {[%emt 0:00:00]} g6 {[%emt 0:00:00]} 2. Nc3 {[%emt 0:00:00]} Bg7 {[%emt 0:00:00]} 3. g3 {[%emt 0:00:00]} d6 {[%emt 0:03:17]} 4. Bg2 {[%emt 0:00:04]} e5 {[%emt 0:00:48]} 5. e3 {[%emt 0:02:03]} Nc6 {[%emt 0:10:47]} 6. Nge2 {[%emt 0:00:34]} Be6 {[%emt 0:00:10]} 7. d3 {[%emt 0:00:06]} Qd7 {[%emt 0:00:42]} 8. Nd5 {[%emt 0:08:46]} Nd8 {[%emt 0:01:42]} 9. O-O {[%emt 0:07:30]} c6 {[%emt 0:00:56]} 10. Ndc3 {[%emt 0:00:06]} h5 {[%emt 0:00:04]} 11. Ne4 {[%emt 0:08:10]} h4 {[%emt 0:21:05]} 12. c5 {[%emt 0:22:12]} dxc5 {[%emt 0:05:43]} 13. Nxc5 {[%emt 0:01:15]} Qd6 {[%emt 0:00:06]} 14. Qc2 {[%emt 0:12:24]} Ne7 {[%emt 0:02:11]} 15. Bd2 {[%emt 0:09:17]} b6 {[%emt 0:20:02]} 16. Nxe6 {[%emt 0:10:42]} Nxe6 {[%emt 0:00:17]} 17. Bb4 {[%emt 0:01:22]} Qc7 {[%emt 0:12:49]} 18. Bxe7 {[%emt 0:00:11]} Kxe7 {[%emt 0:00:06]} 19. Qxc6 {[%emt 0:10:24]} Qxc6 {[%emt 0:00:04]} 20. Bxc6 {[%emt 0:00:07]} Rac8 {[%emt 0:00:01]} 21. Rac1 {[%emt 0:00:45]} Nc5 {[%emt 0:00:16]} 22. Bb5 {[%emt 0:00:15]} a6 {[%emt 0:00:12]} 23. d4 {[%emt 0:01:22]} exd4 {[%emt 0:04:20]} 24. exd4 {[%emt 0:00:06]} axb5 {[%emt 0:00:04]} 25. dxc5 {[%emt 0:00:04]} bxc5 {[%emt 0:00:06]} 26. Nc3 {[%emt 0:00:56]} b4 {[%emt 0:03:55]} 27. Nd5+ {[%emt 0:00:52]} Ke6 {[%emt 0:00:11]} 28. Nf4+ {[%emt 0:03:06]} Kf5 {[%emt 0:00:07]} 29. Rfd1 {[%emt 0:00:53]} hxg3 {[%emt 0:01:51]} 30. hxg3 {[%emt 0:00:22]} Bd4 {[%emt 0:06:37]} 31. Nd5 {[%emt 0:00:52]} Ke4 {[%emt 0:01:13]} 32. Nb6 {[%emt 0:00:36]} Rc6 {[%emt 0:02:10]} 33. Nc4 {[%emt 0:00:17]} Rf6 {[%emt 0:00:52]} 34. Rc2 {[%emt 0:00:43]} g5 {[%emt 0:00:49]} 35. Re2+ {[%emt 0:00:33]} Kf3 {[%emt 0:01:04]} 36. Rde1 {[%emt 0:00:24]} Rfh6 {[%emt 0:00:33]} 37. Re3+ {[%emt 0:00:36]} Bxe3 {[%emt 0:00:38]} 38. Rxe3+ {[%emt 0:00:27]} Kg4 {[%emt 0:00:06]} 39. Ne5+ {[%emt 0:00:26]} Kf5 {[%emt 0:00:41]} 40. Nxf7 {[%emt 0:00:27]} Rh1+ {[%emt 0:00:25]} 41. Kg2 {[%emt 0:30:02]} R8h2+ {[%emt 0:30:12]} 42. Kf3 {[%emt 0:00:10]} g4+ {[%emt 0:00:00]} 43. Ke2 {[%emt 0:00:00]} Rc1 {[%emt 0:00:00]} 44. Nd6+ {[%emt 0:00:00]} Kg6 {[%emt 0:00:00]} 45. Re6+ {[%emt 0:00:00]} Kg7 {[%emt 0:00:00]} 46. Ne4 {[%emt 0:00:00]} Rc2+ {[%emt 0:00:00]} 47. Ke3 {[%emt 0:00:00]} Rxb2 {[%emt 0:00:00]} 48. Rc6 {[%emt 0:01:08]} Rh5 {[%emt 0:00:00]} 49. Nxc5 {[%emt 0:02:41]} Rxa2 {[%emt 0:00:00]} 50. Kf4 {[%emt 0:01:07]} Rxf2+ {[%emt 0:00:00]} 51. Kxg4 {[%emt 0:00:05]} Rh6 {[%emt 0:00:00]} 52. Rc7+ {[%emt 0:00:47]} Rf7 {[%emt 0:00:00]} 53. Rc8 {[%emt 0:00:23]} Rg6+ {[%emt 0:00:00]} 54. Kh3 {[%emt 0:00:26]} Rb6 {[%emt 0:00:00]} 55. Rd8 {[%emt 0:00:51]} b3 {[%emt 0:00:00]} 56. Rd1 {[%emt 0:00:08]} b2 {[%emt 0:00:00]} 57. Rb1 {[%emt 0:00:02]} Rf2 {[%emt 0:00:00]} 58. Na4 {[%emt 0:00:50]} Rb4 {[%emt 0:00:00]} 59. Nc5 {[%emt 0:00:13]} Rc2 0-1

[Event "EYTCC Open U18 2018"]
[Site "Bad Blankeburg"]
[Date "2018.07.15"]
[Round "4"]
[White "Kopylov, Daniel"]
[Black "Siniauski, Artsiom"]
[Result "1/2-1/2"]
[ECO "C05"]
[WhiteElo "2272"]
[BlackElo "1967"]
[Annotator "RC"]
[PlyCount "85"]
[EventDate "2018.07.12"]
[EventType "swiss"]
[EventCountry "GER"]
[SourceTitle "playchess.com"]
[Source "ChessBase"]
[SourceQuality "1"]
[BlackTeam "Belarus"]
[BlackTeamCountry "BLR"]
[TimeControl "40/5400+30:1800+30"]

1. e4 {[%emt 0:00:00]} e6 {[%emt 0:00:00]} 2. d4 {[%emt 0:00:00]} d5 {[%emt 0:00:00]} 3. Nd2 {[%emt 0:00:00]} Nf6 {[%emt 0:00:00]} 4. e5 {[%emt 0:00:00]} Nfd7 {[%emt 0:00:00]} 5. Bd3 {[%emt 0:00:09]} c5 {[%emt 0:00:05]} 6. c3 {[%emt 0:00:11]} Nc6 {[%emt 0:00:06]} 7. Ne2 {[%emt 0:00:11]} cxd4 {[%emt 0:00:13]} 8. cxd4 {[%emt 0:00:09]} f6 {[%emt 0:00:06]} 9. exf6 {[%emt 0:00:15]} Nxf6 {[%emt 0:00:08]} 10. Nf3 {[%emt 0:00:12]} Bd6 {[%emt 0:00:09]} 11. O-O {[%emt 0:00:14]} Qc7 {[%emt 0:00:08]} 12. h3 {[%emt 0:00:21]} O-O {[%emt 0:00:16]} 13. Nc3 {[%emt 0:01:36]} a6 {[%emt 0:00:19]} 14. Be3 {[%emt 0:02:57]} Bd7 {[%emt 0:02:50]} 15. Rc1 {[%emt 0:00:46]} Be8 {[%emt 0:04:05]} 16. Qc2 {[%emt 0:18:50]} Nb4 {[%emt 0:09:00]} 17. Qb1 {[%emt 0:03:45]} Nxd3 {[%emt 0:02:10]} 18. Qxd3 {[%emt 0:01:08]} Qb6 {[%emt 0:04:40]} 19. Ne5 {[%emt 0:08:15]} Bb5 {[%emt 0:03:18]} 20. Nxb5 {[%emt 0:03:15]} Qxb5 {[%emt 0:00:09]} 21. Qxb5 {[%emt 0:01:09]} axb5 {[%emt 0:00:08]} 22. a3 {[%emt 0:01:12]} Rfc8 {[%emt 0:06:29]} 23. Bf4 {[%emt 0:18:02]} Bxe5 {[%emt 0:12:44]} 24. Bxe5 {[%emt 0:00:36]} Nd7 {[%emt 0:00:20]} 25. Bd6 {[%emt 0:00:57]} Rc4 {[%emt 0:02:06]} 26. b3 {[%emt 0:01:14]} Rcc8 {[%emt 0:10:33]} 27. f3 {[%emt 0:03:13]} Kf7 {[%emt 0:01:45]} 28. Kf2 {[%emt 0:01:45]} Nf6 {[%emt 0:04:08]} 29. Ke3 {[%emt 0:02:33]} Ke8 {[%emt 0:02:01]} 30. Kd3 {[%emt 0:01:34]} Kd7 {[%emt 0:00:34]} 31. Rxc8 {[%emt 0:00:46]} Rxc8 {[%emt 0:00:35]} 32. Be5 {[%emt 0:00:54]} Ra8 {[%emt 0:01:49]} 33. Rc1 {[%emt 0:11:43]} Ne8 {[%emt 0:01:36]} 34. Kc3 {[%emt 0:04:02]} Rxa3 {[%emt 0:07:55]} 35. Kb4 {[%emt 0:01:19]} Ra2 {[%emt 0:02:39]} 36. g4 {[%emt 0:01:18]} g6 {[%emt 0:02:54]} 37. h4 {[%emt 0:02:34]} Nd6 {[%emt 0:02:07]} 38. g5 {[%emt 0:07:57]} Rf2 {[%emt 0:05:08]} 39. f4 {[%emt 0:00:42]} Rf3 {[%emt 0:01:39]} 40. h5 {[%emt 0:03:28]} gxh5 {[%emt 0:02:45]} 41. Rh1 {[%emt 0:02:49]} Ne4 {[%emt 0:03:18]} 42. Rxh5 {[%emt 0:01:20]} Nd2 {[%emt 0:02:35]} 43. Rxh7+ {[%emt 0:00:34]} 1/2-1/2

[Event "EYTCC Open U18 2018"]
[Site "Bad Blankeburg"]
[Date "2018.07.16"]
[Round "5"]
[White "Horvath, Dominik"]
[Black "Gavrilescu, David"]
[Result "1/2-1/2"]
[ECO "D39"]
[WhiteElo "2429"]
[BlackElo "2451"]
[Annotator "ChessBase"]
[PlyCount "77"]
[EventDate "2018.07.12"]
[EventType "swiss"]
[EventCountry "GER"]
[SourceTitle "playchess.com"]
[Source "ChessBase"]
[SourceQuality "1"]
[TimeControl "40/5400+30:1800+30"]

1. Nf3 {[%emt 0:00:00]} d5 {[%emt 0:00:00]} 2. d4 {[%emt 0:00:00]} Nf6 {[%emt 0:00:51]} 3. c4 {[%emt 0:00:00]} e6 {[%emt 0:00:31]} 4. Nc3 {[%emt 0:00:00]} Bb4 {[%emt 0:00:14]} 5. Bg5 {[%emt 0:00:14]} dxc4 {[%emt 0:00:58]} 6. e4 {[%emt 0:00:07]} h6 {[%emt 0:00:43]} 7. Bxf6 {[%emt 0:01:10]} Qxf6 {[%emt 0:00:09]} 8. Qa4+ {[%emt 0:00:41]} Nc6 {[%emt 0:00:29]} 9. Bxc4 {[%emt 0:00:13]} Bd7 {[%emt 0:01:46]} 10. Bb5 {[%emt 0:01:17]} Bxc3+ {[%emt 0:01:38]} 11. bxc3 {[%emt 0:00:22]} Qg6 {[%emt 0:00:14]} 12. O-O {[%emt 0:04:56]} Qxe4 {[%emt 0:02:04]} 13. Rfe1 {[%emt 0:00:11]} Qf4 {[%emt 0:00:21]} 14. d5 {[%emt 0:05:46]} Qxa4 {[%emt 0:00:44]} 15. Bxa4 {[%emt 0:00:03]} Nd8 {[%emt 0:03:33]} 16. Bxd7+ {[%emt 0:00:28]} Kxd7 {[%emt 0:00:12]} 17. dxe6+ {[%emt 0:00:26]} Nxe6 {[%emt 0:14:01]} 18. Ne5+ {[%emt 0:00:32]} Ke7 {[%emt 0:01:25]} 19. Rab1 {[%emt 0:00:34]} Rhd8 {[%emt 0:19:34]} 20. Rxb7 {[%emt 0:01:21]} Rd6 {[%emt 0:00:14]} 21. Rb4 {[%emt 0:27:57]} Rad8 {[%emt 0:06:27]} 22. g3 {[%emt 0:03:17]} f6 {[%emt 0:06:41]} 23. Ng4 {[%emt 0:13:12]} Kf7 {[%emt 0:02:38]} 24. Ne3 {[%emt 0:01:16]} R8d7 {[%emt 0:07:34]} 25. Ra4 {[%emt 0:02:51]} a6 {[%emt 0:01:16]} 26. h4 {[%emt 0:04:51]} h5 {[%emt 0:01:23]} 27. Ra5 {[%emt 0:01:11]} g6 {[%emt 0:03:04]} 28. Rb1 {[%emt 0:01:29]} Rc6 {[%emt 0:03:04]} 29. Rb8 {[%emt 0:06:37]} Nc5 {[%emt 0:04:34]} 30. Rb4 {[%emt 0:06:00]} Rdd6 {[%emt 0:01:34]} 31. Rc4 {[%emt 0:02:21]} Nb7 {[%emt 0:02:47]} 32. Raa4 {[%emt 0:00:49]} Nc5 {[%emt 0:00:53]} 33. Ra5 {[%emt 0:03:08]} Nb7 {[%emt 0:00:50]} 34. Rxc6 {[%emt 0:00:30]} Rxc6 {[%emt 0:00:13]} 35. Ra4 {[%emt 0:00:04]} a5 {[%emt 0:04:19]} 36. Nd5 {[%emt 0:00:22]} Rc5 {[%emt 0:01:25]} 37. Rd4 {[%emt 0:00:16]} Nd6 {[%emt 0:00:36]} 38. Nxc7 Rxc7 39. Rxd6 1/2-1/2

[Event "EYTCC Open U18 2018"]
[Site "Bad Blankeburg"]
[Date "2018.07.16"]
[Round "5"]
[White "Martin, Julian"]
[Black "Teclaf, Pawel"]
[Result "1/2-1/2"]
[ECO "C11"]
[WhiteElo "2415"]
[BlackElo "2399"]
[Annotator "ChessBase"]
[PlyCount "64"]
[EventDate "2018.07.12"]
[EventType "swiss"]
[EventCountry "GER"]
[SourceTitle "playchess.com"]
[Source "ChessBase"]
[SourceQuality "1"]
[TimeControl "40/5400+30:1800+30"]

1. e4 {[%emt 0:00:00]} e6 {[%emt 0:00:00]} 2. d4 {[%emt 0:00:00]} d5 {[%emt 0:00:00]} 3. Nc3 {[%emt 0:00:00]} Nf6 {[%emt 0:00:00]} 4. e5 {[%emt 0:00:00]} Nfd7 {[%emt 0:00:01]} 5. f4 {[%emt 0:00:00]} c5 {[%emt 0:00:04]} 6. Nf3 {[%emt 0:00:00]} Nc6 {[%emt 0:00:04]} 7. Be3 {[%emt 0:00:00]} a6 {[%emt 0:00:06]} 8. Qd2 {[%emt 0:00:07]} b5 {[%emt 0:00:04]} 9. a3 {[%emt 0:00:03]} Qa5 {[%emt 0:00:02]} 10. dxc5 {[%emt 0:00:53]} Bxc5 {[%emt 0:00:24]} 11. Bxc5 {[%emt 0:00:06]} Nxc5 {[%emt 0:00:01]} 12. Nd4 {[%emt 0:00:06]} Qb6 {[%emt 0:00:45]} 13. b4 {[%emt 0:31:20]} Nd3+ {[%emt 0:21:39]} 14. Qxd3 {[%emt 0:10:20]} Nxd4 {[%emt 0:03:21]} 15. Rd1 {[%emt 0:26:39]} Nc6 {[%emt 0:07:00]} 16. Qg3 {[%emt 0:00:37]} O-O {[%emt 0:04:03]} 17. Bd3 {[%emt 0:00:38]} f6 18. exf6 {[%emt 0:02:14]} Rxf6 {[%emt 0:02:05]} 19. Ne2 {[%emt 0:00:09]} Bd7 {[%emt 0:10:02]} 20. Qf2 {[%emt 0:00:49]} Qxf2+ {[%emt 0:00:46]} 21. Kxf2 {[%emt 0:00:02]} e5 {[%emt 0:02:36]} 22. g3 {[%emt 0:18:14]} g5 {[%emt 0:11:16]} 23. c4 {[%emt 0:06:20]} bxc4 {[%emt 0:01:56]} 24. Bxc4 {[%emt 0:00:05]} dxc4 {[%emt 0:00:35]} 25. Rxd7 {[%emt 0:00:05]} exf4 {[%emt 0:02:13]} 26. gxf4 {[%emt 0:00:46]} Ne5 {[%emt 0:01:01]} 27. Rd4 {[%emt 0:01:34]} gxf4 {[%emt 0:04:46]} 28. Nxf4 {[%emt 0:00:59]} Kh8 {[%emt 0:01:44]} 29. Ke2 {[%emt 0:01:41]} Raf8 {[%emt 0:03:21]} 30. Rf1 {[%emt 0:00:13]} c3 {[%emt 0:05:27]} 31. Re4 {[%emt 0:00:13]} Rf5 {[%emt 0:00:36]} 32. Rc1 {[%emt 0:01:01]} Rxf4 {[%emt 0:06:14]} 1/2-1/2

[Event "EYTCC Open U18 2018"]
[Site "Bad Blankeburg"]
[Date "2018.07.16"]
[Round "5"]
[White "Badelka, Olga"]
[Black "Amon, Nejc"]
[Result "1-0"]
[ECO "A18"]
[WhiteElo "2407"]
[BlackElo "2295"]
[Annotator "ChessBase"]
[PlyCount "67"]
[EventDate "2018.07.12"]
[EventType "swiss"]
[EventCountry "GER"]
[SourceTitle "playchess.com"]
[Source "ChessBase"]
[SourceQuality "1"]
[TimeControl "40/5400+30:1800+30"]

1. c4 {[%emt 0:00:00]} Nf6 {[%emt 0:00:00]} 2. Nc3 {[%emt 0:00:00]} e6 {[%emt 0:00:00]} 3. e4 {[%emt 0:00:10]} d5 {[%emt 0:00:03]} 4. e5 {[%emt 0:00:11]} d4 {[%emt 0:00:12]} 5. exf6 {[%emt 0:00:03]} dxc3 {[%emt 0:00:08]} 6. bxc3 {[%emt 0:00:02]} Qxf6 {[%emt 0:00:14]} 7. Nf3 {[%emt 0:00:04]} b6 {[%emt 0:00:27]} 8. d4 {[%emt 0:02:48]} Bb7 {[%emt 0:00:26]} 9. Be2 {[%emt 0:00:55]} h6 {[%emt 0:01:00]} 10. Rb1 {[%emt 0:03:12]} Qg6 {[%emt 0:16:41]} 11. Bf4 {[%emt 0:02:34]} Be4 {[%emt 0:05:06]} 12. Qa4+ {[%emt 0:15:20]} Bc6 {[%emt 0:00:57]} 13. Qb3 {[%emt 0:00:19]} Bd6 {[%emt 0:06:36]} 14. Bg3 {[%emt 0:00:37]} Nd7 {[%emt 0:02:53]} 15. O-O {[%emt 0:01:53]} O-O {[%emt 0:08:27]} 16. Rbd1 {[%emt 0:00:14]} e5 {[%emt 0:09:19]} 17. Nh4 {[%emt 0:10:51]} Qf6 {[%emt 0:00:44]} 18. Bg4 {[%emt 0:03:20]} exd4 {[%emt 0:08:59]} 19. cxd4 {[%emt 0:00:13]} Qg5 {[%emt 0:03:22]} 20. Bf3 {[%emt 0:10:27]} Bxf3 {[%emt 0:02:52]} 21. Qxf3 {[%emt 0:00:14]} Qa5 {[%emt 0:03:35]} 22. Bxd6 {[%emt 0:03:12]} cxd6 {[%emt 0:00:06]} 23. Nf5 {[%emt 0:00:04]} Kh7 {[%emt 0:10:54]} 24. Nxd6 {[%emt 0:02:29]} Nf6 {[%emt 0:00:11]} 25. a3 {[%emt 0:10:04]} Qa4 {[%emt 0:02:23]} 26. c5 {[%emt 0:02:21]} bxc5 {[%emt 0:01:26]} 27. dxc5 {[%emt 0:00:05]} Qa5 {[%emt 0:00:07]} 28. Rc1 {[%emt 0:05:01]} Rab8 {[%emt 0:01:13]} 29. c6 {[%emt 0:06:13]} Qc7 {[%emt 0:00:17]} 30. Nb5 {[%emt 0:02:26]} Qb6 {[%emt 0:01:54]} 31. c7 {[%emt 0:02:51]} Rbc8 {[%emt 0:00:10]} 32. Qc6 {[%emt 0:00:22]} Ne8 {[%emt 0:05:35]} 33. Qxb6 {[%emt 0:00:55]} axb6 {[%emt 0:00:06]} 34. Rfd1 {[%emt 0:00:28]} 1-0

[Event "EYTCC Open U18 2018"]
[Site "Bad Blankeburg"]
[Date "2018.07.16"]
[Round "5"]
[White "Schmidek, Emil"]
[Black "Gorshtein, Ido"]
[Result "1-0"]
[ECO "B12"]
[WhiteElo "2376"]
[BlackElo "2382"]
[Annotator "NA"]
[PlyCount "73"]
[EventDate "2018.07.12"]
[EventType "swiss"]
[EventCountry "GER"]
[SourceTitle "playchess.com"]
[Source "ChessBase"]
[SourceQuality "1"]
[TimeControl "40/5400+30:1800+30"]

1. e4 {[%emt 0:00:00]} c6 {[%emt 0:00:00]} 2. d4 {[%emt 0:00:00]} d5 {[%emt 0:00:00]} 3. e5 {[%emt 0:00:00]} Bf5 {[%emt 0:00:00]} 4. Nf3 {[%emt 0:00:00]} e6 {[%emt 0:00:00]} 5. Be2 {[%emt 0:00:00]} Bb4+ {[%emt 0:00:00] B12: Caro-Kann: Advance Variation} 6. c3 {[%emt 0:01:27]} Ba5 {[%emt 0:00:11]} 7. O-O {[%emt 0:00:24]} Nd7 {[%emt 0:00:43]} 8. Nbd2 {[%emt 0:03:41]} Bc7 {[%emt 0:00:02] LiveBook: 18 Games} 9. Ne1 {[%emt 0:05:31]} f6 $146 {[%emt 0:05:13]} ({Predecessor:} 9... Ne7 10. Nd3 O-O 11. Nf3 h6 12. Nf4 c5 13. h3 cxd4 14. cxd4 {0-1 (50) Grischuk,A (2747)-Andreikin,D (2743) ICC INT 2016}) 10. f4 {[%emt 0:00:51]} Ne7 {[%emt 0:00:16]} 11. h4 {[%emt 0:19:28]} ({Better is} 11. Bh5+ $14 Kf8 12. g4) 11... fxe5 {[%emt 0:03:03]} 12. fxe5 {[%emt 0:00:30]} Ng6 {[%emt 0:06:41]} 13. Ndf3 {[%emt 0:41:06]} Nxh4 {[%emt 0:02:24]} 14. Bg5 {[%emt 0:00:13]} Nxf3+ {[%emt 0:00:01]} 15. Nxf3 {[%emt 0:00:07]} Qc8 {[%emt 0:03:15]} 16. Nh4 {[%emt 0:01:26]} O-O $16 {[%emt 0:01:44]} 17. Nxf5 {[%emt 0:02:19]} Rxf5 {[%emt 0:02:07]} 18. Rxf5 {[%emt 0:00:28]} exf5 {[%emt 0:00:01]} 19. Qd3 {[%emt 0:02:33]} Nxe5 {[%emt 0:27:34]} 20. dxe5 {[%emt 0:00:33]} Qe6 {[%emt 0:00:01]} 21. Bf4 {[%emt 0:04:18]} Re8 {[%emt 0:00:02]} 22. c4 {[%emt 0:03:08]} g5 {[%emt 0:10:14]} 23. cxd5 {[%emt 0:02:45]} cxd5 {[%emt 0:01:02]} 24. Bf3 {[%emt 0:01:35]} Bb6+ {[%emt 0:02:54]} 25. Be3 {[%emt 0:02:22]} Bxe3+ {[%emt 0:00:02]} 26. Qxe3 {[%emt 0:00:08]} g4 {[%emt 0:00:06]} 27. Bd1 {[%emt 0:02:57]} Qxe5 {[%emt 0:00:16]} 28. Qxe5 {[%emt 0:01:40]} Rxe5 {[%emt 0:00:01]} 29. Bb3 {[%emt 0:00:23]} Kf7 {[%emt 0:00:49]} 30. Kf2 {[%emt 0:01:17]} Kg6 {[%emt 0:01:09]} 31. Rd1 {[%emt 0:01:21]} Kg5 {[%emt 0:00:24]} 32. Rxd5 {[%emt 0:01:57]} Re7 {[%emt 0:01:05]} 33. Bc2 {[%emt 0:00:20]} Rf7 {[%emt 0:00:01]} 34. g3 {[%emt 0:00:21]} h5 {[%emt 0:00:09]} 35. a4 {[%emt 0:00:52]} h4 {[%emt 0:00:32]} 36. gxh4+ {[%emt 0:00:10]} Kf4 {[%emt 0:00:01]} 37. h5 {[%emt 0:00:23]} 1-0

[Event "EYTCC Open U18 2018"]
[Site "Bad Blankeburg"]
[Date "2018.07.16"]
[Round "5"]
[White "Morgunov, Marc"]
[Black "Stoleriu, George"]
[Result "0-1"]
[ECO "B11"]
[WhiteElo "2362"]
[BlackElo "2347"]
[Annotator "NA"]
[PlyCount "34"]
[EventDate "2018.07.12"]
[EventType "swiss"]
[EventCountry "GER"]
[SourceTitle "playchess.com"]
[Source "ChessBase"]
[SourceQuality "1"]
[TimeControl "40/5400+30:1800+30"]

{[%evp 15,33,25,22,30,38,0,0,-13,32767,-86,-110,32767,32767,-70,32767,32767,32767,32767,32767,-508]} 1. e4 {[%emt 0:00:00]} c6 {[%emt 0:00:00]} 2. Nc3 {[%emt 0:00:00]} d5 {[%emt 0:00:00]} 3. Nf3 {[%emt 0:00:02]} Bg4 {[%emt 0:00:07]} 4. h3 {[%emt 0:00:16]} Bh5 {[%emt 0:00:07]} 5. exd5 {[%emt 0:00:17]} cxd5 {[%emt 0:00:11]} 6. Bb5+ {[%emt 0:00:32]} Nc6 {[%emt 0:00:09]} 7. g4 {[%emt 0:00:06]} Bg6 {[%emt 0:00:04]} 8. Ne5 {[%emt 0:00:45]} Rc8 {[%emt 0:00:08]} 9. d4 {[%emt 0:00:40]} e6 $1 {[%emt 0:00:13]} 10. h4 {[%emt 0:04:54]} f6 {[%emt 0:00:07] LiveBook: 93 Games} 11. h5 {[%emt 0:09:23] B11: Caro-Kann: Two Knights Variation} (11. Bxc6+ bxc6 12. Nxg6 hxg6 13. Qd3 Kf7 14. Be3 Bd6 15. O-O-O Ne7 16. Ne2 Qa5 17. Kb1 Qb5 18. Qd2 Rb8 {0-1 (36) Fressinet,L (2662)-Kovalenko,I (2639) Katowice 2017}) 11... Bxc2 {[%emt 0:01:11]} 12. Qxc2 {[%emt 0:10:21]} (12. Bxc6+ $11 bxc6 13. Qxc2 fxe5 14. dxe5) 12... fxe5 {[%emt 0:00:11]} 13. dxe5 {[%emt 0:00:27]} Bb4 {[%emt 0:03:54]} 14. a3 {[%emt 0:10:22]} Bxc3+ {[%emt 0:07:56]} 15. Qxc3 {[%emt 0:01:59]} Nh6 $146 {[%emt 0:02:05]} ({Predecessor:} 15... Qb6 16. Ba4 Nge7 17. Bd2 O-O 18. f4 Nd4 19. Qd3 Rc4 20. b3 Nc2+ 21. Ke2 Re4+ 22. Kf3 Nxa1 23. Rxa1 g5 24. Be3 Rxe3+ 25. Qxe3 Rxf4+ {0-1 (25) Andreev,D (1937)-Bakalov,M (1774) Sofia 2017}) 16. f3 {[%emt 0:15:23]} O-O {[%emt 0:08:53]} 17. O-O $19 {[%emt 0:03:51]} (17. Bd2 $17 {is more resistant.}) 17... Qb6+ {[%emt 0:01:15]} 0-1